Cogmind - Beta 11.1 @@@ ROGUE MODE // 2022.06.12 @ 06:48:24 Player: Demise Result: Destroyed by G-34 Mercenary with Small Laser Performance ------------- Evolutions (0) 0 Regions Visited (1) 200 Robots Destroyed (38) 190 Value Destroyed (809) 809 Prototype IDs (1) 20 Alien Tech Used (0) 0 Bonus (24) 24 TOTAL SCORE: 1243 Bonus ------- High Alert Combat Kills 24 Cogmind --------- Core Integrity 0/250 Matter 272/300 Energy 265/265 System Corruption 0% Temperature Cool (6) Movement Rolling (140) Ox4 Location -10/Materials Parts ------- > --- POWER (1) -------- Improved Ion Engine > --- PROPULSION (2) --- Wheel Wheel > --- UTILITY (2) ------ Huge Storage Unit Light Armor Plating > --- WEAPON (2) ------- Assault Rifle Assault Rifle > --- INVENTORY (25) --- Improved Ion Engine Wheel Wheel Compact Wheel Structural Scanner Sensor Array Signal Interpreter Improved Terrain Scanner Seismic Detector Core Shielding Light Armor Plating Light Armor Plating Improved EM Shotgun Improved EM Shotgun Improved EM Shotgun Beam Cannon Beam Cannon Light Assault Rifle Light Assault Rifle Light Assault Rifle Grenade Launcher Grenade Launcher Peak State ------------ > --- POWER ------------ Improved Ion Engine > --- PROPULSION ------- Wheel Wheel > --- UTILITY ---------- Huge Storage Unit Seismic Detector > --- WEAPON ----------- Improved EM Shotgun Assault Rifle > --- INVENTORY -------- Improved Ion Engine Wheel Wheel Structural Scanner Sensor Array Improved Terrain Scanner Light Armor Plating Light Armor Plating Light Armor Plating Light Armor Plating Improved EM Shotgun Improved EM Shotgun Improved EM Shotgun Beam Cannon Beam Cannon Light Assault Rifle Light Assault Rifle Light Assault Rifle Grenade Launcher Grenade Launcher [Rating: 12] Favorites ----------- Power Improved Ion Engine Engine Improved Ion Engine Propulsion Wheel Wheel Wheel Utility Huge Storage Unit Device Seismic Detector Storage Huge Storage Unit Protection Light Armor Plating Weapon Assault Rifle Energy Gun Small Laser Ballistic Gun Assault Rifle Build | -11 -10 ------- Run | Scr Mat Slots Evolved . | . . Power . | . . Propulsion . | . . Utility . | . . Weapon . | . . Parts Attached 28 | 8 20 Power 2 | 1 1 Engine 2 | 1 1 Core . | . . Reactor . | . . Propulsion 8 | 2 6 Treads . | . . Leg . | . . Wheel 8 | 2 6 Hover . | . . Flight . | . . Utility 10 | 2 8 Device 5 | 1 4 Storage 3 | 1 2 Processor . | . . Hackware . | . . Protection 2 | . 2 Artifact . | . . Weapon 8 | 3 5 Energy Gun 2 | 1 1 Energy Cannon . | . . Ballistic Gun 6 | 2 4 Ballistic Cannon . | . . Launcher . | . . Special Weapon . | . . Impact Weapon . | . . Slashing Weapon . | . . Piercing Weapon . | . . Special Melee Weapon . | . . Unidentified Prototypes 1 | . 1 Parts Lost 6 | . 6 Power 1 | . 1 Propulsion 4 | . 4 Utility . | . . Weapon 1 | . 1 Highest Loss Streak 4 | . 4 To Critical Strikes . | . . Average Slot Usage (%) 91 | . 91 Engine 10 | . 10 Wheel 27 | . 27 Device 6 | . 6 Storage 14 | . 14 Protection 4 | . 4 Ballistic Gun 27 | . 27 Naked Turns . | . . Heaviest Build 94 | 13 94 Greatest Support 26 | 26 26 Greatest Overweight (x) 4 | 2 4 Average Overweight (x) 2 | . 2 Largest Inventory Capacity 25 | 8 25 Average Capacity 18 | 7 20 Most Carried 24 | 8 24 Average Carried 15 | 2 16 Final Capacity 25 | 8 25 Final Carried 22 | 8 22 Class Distribution -------------------- 100% | Mutant Dominant Class ---------------- Mutant | -10/Materials Resources | -11 -10 ----------- Run | Scr Mat Matter Collected 1103 | 406 697 Remotely . | . . Salvage Created 1283 | 223 1060 Parts 84 | 21 63 Haulers Intercepted 2 | . 2 Recyclers Shooed 3 | 1 2 Parts Field Recycled . | . . Retrieved Matter . | . . Parts Self-Destructed . | . . Prevented . | . . Kills | -11 -10 ------- Run | Scr Mat Combat Hostiles Destroyed 22 | . 22 Guns 22 | . 22 Classes Destroyed 8 | 3 5 Worker 3 | 2 1 Builder 1 | . 1 Tunneler 5 | 5 . Hauler 2 | . 2 Recycler 2 | 1 1 Watcher 3 | . 3 Swarmer 3 | . 3 Grunt 19 | . 19 Best Kill Streak 6 | 4 6 Combat Bots Only 6 | . 6 Max Kills in Single Turn 2 | 1 2 Gunslinging 1 | . 1 Exploded . | . . Melee . | . . Uniques/NPCs Destroyed . | . . Combat | -11 -10 -------- Run | Scr Mat Damage Taken 952 | . 952 Core 250 | . 250 Absorbed by Shields . | . . Regen/Repaired (Parts) 74 | . 74 Core Remaining (%) 100 | 100 . Volleys Fired 122 | 21 101 Largest 2 | 2 2 Hottest 40 | 40 40 Shots Fired 243 | 42 201 Gun 243 | 42 201 Cannon . | . . Launcher . | . . Special . | . . Kinetic 243 | 42 201 Thermal . | . . Explosive . | . . Electromagnetic . | . . Robot Hit Streak 20 | 5 20 Robot Miss Streak 4 | 4 3 Penetration Max . | . . Secondary Targets 3 | . 3 Max Gunslinging Chain 1 | . 1 Shots Hit Robots 172 | 23 149 Core Hits 63 | 9 54 Critical Kills . | . . Critical Parts Destroyed . | . . Critical Strikes . | . . Melee Attacks . | . . Impact . | . . Slashing . | . . Piercing . | . . Sneak Attacks . | . . Combat Hostiles . | . . Follow-up Attacks . | . . Damage Inflicted 2120 | 270 1850 Guns 2120 | 270 1850 Cannons . | . . Explosions . | . . Melee . | . . Ramming . | . . Kinetic 2120 | 270 1850 Thermal . | . . Explosive . | . . Electromagnetic . | . . Impact . | . . Slashing . | . . Piercing . | . . Highest Corruption . | . . Average Corruption . | . . Corruption Purged . | . . Corruption Blocked . | . . Overload Shots . | . . Overflow Damage . | . . Projectiles . | . . Explosions . | . . Melee . | . . Knockbacks . | . . Impact . | . . Kinetic . | . . Secondary . | . . Self-Inflicted Damage . | . . Shots . | . . Rammed . | . . Targets Rammed . | . . Kicked . | . . Crushed . | . . Highest Temperature 213 | . 213 Average Temperature 20 | . 20 Received Heat Transfer 525 | . 525 Siege Activations . | . . Robots Corrupted . | . . Combat Hostiles . | . . Parts Fried . | . . Impact Corruptions . | . . Robots Melted . | . . Combat Hostiles . | . . Parts Melted . | . . Heat Transferred . | . . Parts Sabotaged . | . . Parts Stolen . | . . Parts Stripped . | . . Power Chain Reactions . | . . Missiles Intercepted . | . . Alert | -11 -10 ------- Run | Scr Mat Peak Influence 465 | 40 465 Initial 26 | . 26 Average 224 | 18 256 Maximum Alert Level 2 | . 2 Low Security (%) 27 | 100 16 Level 1 66 | . 76 Level 2 5 | . 6 Level 3 . | . . Level 4 . | . . Level 5 . | . . High Security . | . . Max Security . | . . Squads Dispatched 7 | . 7 Investigation 7 | . 7 Extermination . | . . Reinforcement . | . . Assault . | . . Garrison . | . . Intercept . | . . Searches Triggered . | . . Construction Impeded . | . . Haulers Reinforced . | . . Active Scanning Responses . | . . Cargo Convoy Interrupts . | . . Stealth | -11 -10 --------- Run | Scr Mat Distress Signals 3 | . 3 Communications Jammed . | . . Distress Signals . | . . Times Spotted 39 | . 39 Peak Tracking Total 10 | . 10 Tactical Retreats 5 | . 5 Traps | -11 -10 ------- Run | Scr Mat Traps Triggered 1 | . 1 Indirectly . | . . Trap Hack Attempts . | . . Triggered . | . . Disarmed . | . . Reprogrammed 4 | . 4 Reused 1 | . 1 Traps Extracted . | . . Installed . | . . Triggered 1 | . 1 Machines | -11 -10 ---------- Run | Scr Mat Machines Disabled . | . . Max in Single Turn . | . . Machines Sabotaged . | . . Garrisons Compromised . | . . Overloaded Fab Kills . | . . Hacking | -11 -10 --------- Run | Scr Mat Machines Accessed 10 | . 10 Terminals 7 | . 7 Fabricators . | . . Repair Stations 1 | . 1 Recycling Units 2 | . 2 Scanalyzers . | . . Garrison Access . | . . Total Hacks 33 | . 33 Successful 20 | . 20 Failed 12 | . 12 Catastrophic 3 | . 3 Database Lockouts 1 | . 1 Manual 23 | . 23 Terminals 27 | . 27 Fabricators . | . . Repair Stations 2 | . 2 Recycling Units 4 | . 4 Scanalyzers . | . . Garrison Access . | . . Terminal Hacks 8 | . 8 Robot Analysis 3 | . 3 Level Access Points 1 | . 1 Branch Access Points 1 | . 1 Terminal Index 1 | . 1 Reprogram Traps 1 | . 1 Hauler Manifests 1 | . 1 Fabricator Hacks . | . . Repair Station Hacks 2 | . 2 Scan Component 1 | . 1 Repair 1 | . 1 Recycling Unit Hacks 1 | . 1 Retrieve Components 1 | . 1 Scanalyzer . | . . Garrison Access Hacks . | . . Unauthorized Hacks 9 | . 9 Terminals 7 | . 7 Botnet 6 | . 6 Operators 1 | . 1 Fabricators . | . . Repair Stations . | . . Recycling Units 2 | . 2 Tunnel 2 | . 2 Scanalyzers . | . . Garrison Access . | . . Data Cores Recovered . | . . Used . | . . Hacking Detections 9 | . 9 Full Trace Events 5 | . 5 Feedback Events . | . . Feedback Blocked . | . . Robot Schematics Acquired . | . . Robots Built . | . . Authchips . | . . Time . | . . Total Robot Build Rating . | . . Part Schematics Acquired . | . . Parts Built . | . . Authchips . | . . Time . | . . Total Part Build Rating . | . . Parts Repaired 1 | . 1 Time 26 | . 26 Parts Recycled . | . . Recycled Matter . | . . Retrieved Matter . | . . Retrieved Components 1 | . 1 Parts Scanalyzed . | . . Part Schematics Acquired . | . . Parts Damaged . | . . Bothacking | -11 -10 ------------ Run | Scr Mat Used RIF Installer . | . . Robots Hacked . | . . Non-combat . | . . Combat . | . . Robot Hacks Applied . | . . Relay Couplers Released . | . . Fabnet Peak Effective % . | . . Robots Rewired . | . . Allies Hacked . | . . Hacks Repelled . | . . Allies | -11 -10 -------- Run | Scr Mat Total Allies . | . . Largest Group . | . . Highest-Rated Group . | . . Highest-Rated Ally . | . . Total Orders . | . . Ally Attacks . | . . Total Damage . | . . Kills . | . . Allies Corrupted . | . . Allies Melted . | . . Intel | -11 -10 ------- Run | Scr Mat Robot Analysis Total 3 | . 3 Derelict Logs Recovered . | . . Drone Launches . | . . Drone Recoveries . | . . Exploration | -11 -10 ------------- Run | Scr Mat Turns Passed 1352 | 181 1171 Spaces Moved 748 | 108 640 Core 8 | 8 . Treads . | . . Legs . | . . Wheels 740 | 100 640 Hover . | . . Flight . | . . Fastest Speed 50 | 50 90 Average Speed 112 | 92 115 Slowest Speed 150 | 150 140 Overloaded Moves . | . . Propulsion Burnouts . | . . Robots Hopped . | . . Cave-ins Triggered . | . . Exploration Rate (%) 49 | 7 92 Regions Visited 1 Branch Regions . Pre-discovered Areas 2 | . 2 Known Exits Taken . | . . Unknown Exits Taken 1 | 1 . Scrap Searched . | . . Spaces Dug . | . . Terrain Destroyed . | . . Melee . | . . Projectile . | . . AOE . | . . Terrain Rammed . | . . Walls Destroyed . | . . Machines Disabled . | . . Actions | -11 -10 --------- Run | Scr Mat Total 1023 | 146 877 Wait 79 | . 79 Move 747 | 107 640 Hop . | . . Pick Up 31 | 8 23 Fast Attach 11 | 8 3 Attach 11 | . 11 Detach 8 | 1 7 Swap 6 | . 6 Drop 8 | 1 7 Fire 122 | 21 101 Melee . | . . Ram . | . . Kick . | . . Crush . | . . Escape Stasis . | . . Rewire . | . . Trap . | . . Miscellaneous . | . . Route ------- -11/Scrapyard -10/Materials (discovered 4 exits: *Mat x3 / Min) History --------- Turn | Location | Event 11 | -11/Scrapyard | Discovered new exit (range 15) 182 | -11/Scrapyard | Entered Materials 306 | -10/Materials | Build established: Mutant 496 | -10/Materials | Discovered new exit (range 11) 502 | -10/Materials | Lost 4 parts (1p2n1w) 563 | -10/Materials | Core integrity fell below 50% 699 | -10/Materials | Central database locked down 865 | -10/Materials | Discovered new exit (range 8) 919 | -10/Materials | Repaired Assault Rifle 1190 | -10/Materials | Discovered new exit (range 7) 1213 | -10/Materials | Identified exit to Materials 1213 | -10/Materials | Identified exit to Mines 1260 | -10/Materials | Core integrity fell below 20% 1353 | -10/Materials | Destroyed by G-34 Mercenary with Small Laser Last Messages --------------- 01230_ Triggered Alarm Trap. 01230_ An alarm sounds. 01230_ ALERT: Alarm triggered, dispatching investigation squad. 01235_ U-05 Engineer lays Concrete. 01241_ G-34 Mercenary destroyed. 01252_ Wheel destroyed. 01253_ G-34 Mercenary destroyed. 01269_ Switching to secondary target: G-34 Mercenary. 01284_ G-34 Mercenary destroyed. 01296_ Acquired 40 matter. 01299_ Acquired 48 matter. 01304_ Acquired 45 matter. 01309_ Dropped Lgt. Armor Plating. 01310_ Acquired 10 matter. 01334_ Connecting with Recycling Unit... >>Force(Tunnel) DISCOVERED[-1/Command] 01334_ ALERT: Suspicious activity at Recycling Unit M002. Dispatching Investigation squad. 01347_ G-34 Mercenary destroyed. Map ----- +----------------------------------------------------+ | # ] # #??????# #??# ## #???# | | #" #[#??????# #??########+##### | | #" # ######## #?????# ## | | #" # # T # #?????#" ## | | #T + # # "T" #?????#T # | | #" # # # #?????#" """ # | | #" # # ########?????# """"" + | | #" # # #????????????# """"" # | | # # # """ #????????????# """"" # | | ###### # """ #????????????# """ ## | | ?????# # """ #????????????# ## | | ?????# # #????????????########### | | ?????# # """ #????#######???????????# | | ?????# # """ #????# #????????#### | | ?????# # """ ###### """ #???????##!! | | ?????# # + # """ #???????#! | | ?#####+####+### =#[""" #???????#! | | # # # !=%# """ #???????#! | | # # %*%#[=! #???????#! | | # """"" + *!*+ """ #???????##!! | | # """"" # %==#!""" #????????#### | | # """"" # ######=""" #???????????# | | # """"" ## #######* #???????????# | | ??""""" ## # # !#???????????# | | ???"""" ## =g%""" # #???????????# | | ????""" ## < #@""" #######???????????# | | ????? ## # """ #?????????????????# | | ?????? ###### #?????????????????# | | ??????###????# "" #?????????????????# | | ?????????????# "Y #?????????????????## | | ?????????????# "" #??????????????????? | | ?????????????# ]#??????????????????? | | ?????????????#######??????????????????? | | ??????????????????????????????????????? | | | | | | | | | | | | | | | | | | | | | | | | | | | | | | | | | +----------------------------------------------------+ Best States ------------- Heat Dissipation 25 Energy Generation 12 Energy Capacity 265 Matter Stores 300 Matter Capacity 300 Sight Range 16 Terrain Scan Density 10 Armor Coverage 150 Evasion (%) 42 Item Schematics ----------------- None Robot Schematics ------------------ None Fabricated ------------ Nothing Alien Tech Used ----------------- None Achievements -------------- None Challenges ------------ None Game ------ Seed ThrowingAutogunAirjet Manual? 0 Play Time 00:13:17 Cumulative 583.4 hours Start 2022.06.12 @ 06:38:41 End 2022.06.12 @ 06:48:24 Sessions 1 Manual Loads 0 Difficulty Rogue Special Mode None Game No. 472 Rogue 472 Adventurer 0 Explorer 0 Win Type - Total 5 Types 4/0/0/1/0/0/0/0/0 Lore% 71 Gallery% 84 Achievement% 66 Wizard Run 0 Options --------- ASCII 0 Keyboard 1 Movement Numpad Keybinds 0 Fullscreen 1 Font 12/Terminus Map View 83x54 Tactical HUD 1 Map Filters NONE Filters NONE Steam 1 RUN: 6c876898-18cf-468b-a6d5-0bf8cbecc1bb